[Event "GER-ch Blitz 2019"]
[Site "Magdeburg"]
[Date "2019.05.25"]
[Round "20.3"]
[White "Heistermann, Till"]
[Black "Schneider, Ilja"]
[Result "0-1"]
[ECO "A11"]
[WhiteElo "2181"]
[BlackElo "2494"]
[Annotator "ChessBase"]
[PlyCount "79"]
[EventDate "2019.05.25"]
[EventType "tourn"]
[EventCountry "GER"]
[Tiebreak "Number of wins+Number of black wins"]
[SourceTitle "playchess.com"]
[Source "ChessBase"]
[SourceQuality "1"]
[TimeControl "180+2"]

1. c4 {[%emt 0:00:00]} c6 {[%emt 0:00:00]} 2. Nf3 {[%emt 0:00:00]} Nf6 {
[%emt 0:00:01]} 3. e3 {[%emt 0:00:02]} d5 {[%emt 0:00:00]} 4. Nc3 {[%emt 0:00:
04]} a6 {[%emt 0:00:04]} 5. b3 {[%emt 0:00:05]} Bg4 {[%emt 0:00:04]} 6. Be2 {
[%emt 0:00:05]} e6 {[%emt 0:00:04]} 7. O-O {[%emt 0:00:03]} Bd6 {[%emt 0:00:01]
} 8. d4 {[%emt 0:00:02]} O-O {[%emt 0:00:06]} 9. Bb2 {[%emt 0:00:00]} Nbd7 {
[%emt 0:00:03]} 10. h3 {[%emt 0:00:04]} Bh5 {[%emt 0:00:01]} 11. Qc2 {[%emt 0:
00:04]} Qe7 {[%emt 0:00:11]} 12. e4 {[%emt 0:00:09]} Bg6 {[%emt 0:00:06]} 13.
Bd3 {[%emt 0:00:01]} dxc4 {[%emt 0:00:09]} 14. bxc4 {[%emt 0:00:05]} e5 {
[%emt 0:00:01]} 15. d5 {[%emt 0:00:04]} Nc5 {[%emt 0:00:07]} 16. Rfe1 {[%emt 0:
00:09]} Rfd8 {[%emt 0:00:06]} 17. Nh4 {[%emt 0:00:25]} Rac8 {[%emt 0:00:05]}
18. Qe2 {[%emt 0:00:18]} cxd5 {[%emt 0:00:47]} 19. cxd5 {[%emt 0:00:02]} b5 {
[%emt 0:00:07]} 20. Nxg6 {[%emt 0:00:13]} hxg6 {[%emt 0:00:01]} 21. Bc2 {
[%emt 0:00:04]} Nfd7 {[%emt 0:00:06]} 22. Nd1 {[%emt 0:00:11]} Nb6 {[%emt 0:00:
01]} 23. Bb3 {[%emt 0:00:04]} Nca4 {[%emt 0:00:06]} 24. Bxa4 {[%emt 0:00:06]}
Nxa4 {[%emt 0:00:00]} 25. Ne3 {[%emt 0:00:07]} Bc5 {[%emt 0:00:12]} 26. Rab1 {
[%emt 0:00:19]} Bd4 {[%emt 0:00:16]} 27. Bxd4 {[%emt 0:00:06]} exd4 {[%emt 0:
00:01]} 28. Nd1 {[%emt 0:00:01]} Nc3 {[%emt 0:00:16]} 29. Nxc3 {[%emt 0:00:01]}
dxc3 {[%emt 0:00:01]} 30. Qc2 {[%emt 0:00:01]} Qc5 {[%emt 0:00:05]} 31. Re3 {
[%emt 0:00:18]} b4 {[%emt 0:00:01]} 32. Rd3 {[%emt 0:00:08]} a5 {[%emt 0:00:07]
} 33. Rbd1 {[%emt 0:00:02]} Qc4 {[%emt 0:00:08]} 34. e5 {[%emt 0:00:04]} a4 {
[%emt 0:00:01]} 35. Rd4 {[%emt 0:00:07]} b3 {[%emt 0:00:02]} 36. axb3 {[%emt 0:
00:08]} axb3 {[%emt 0:00:01]} 37. Qe4 {[%emt 0:00:04]} c2 {[%emt 0:00:06]} 38.
Re1 {[%emt 0:00:04]} c1=Q {[%emt 0:00:11]} 39. Rxc4 {[%emt 0:00:01]} Qxc4 {
[%emt 0:00:02]} 40. e6 0-1

[Event "GER-ch Blitz 2019"]
[Site "Magdeburg"]
[Date "2019.05.25"]
[Round "20.4"]
[White "Carow, Johannes"]
[Black "Braeuning, Rudolf Wilhelm"]
[Result "1/2-1/2"]
[ECO "A50"]
[WhiteElo "2445"]
[BlackElo "2285"]
[Annotator "NA"]
[PlyCount "86"]
[EventDate "2019.05.25"]
[EventType "tourn"]
[EventCountry "GER"]
[Tiebreak "Number of wins+Number of black wins"]
[SourceTitle "playchess.com"]
[Source "ChessBase"]
[SourceQuality "1"]
[TimeControl "180+2"]

1. d4 {[%emt 0:00:00]} Nf6 {[%emt 0:00:00]} 2. c4 {[%emt 0:00:01]} Nc6 {
[%emt 0:00:01]} 3. Nf3 {[%emt 0:00:04]} e6 {[%emt 0:00:01]} 4. Nc3 {[%emt 0:00:
02]} Bb4 {[%emt 0:00:01]} 5. Qc2 {[%emt 0:00:01]} d5 {[%emt 0:00:01]} 6. Bg5 {
[%emt 0:00:11]} h6 {[%emt 0:00:04]} 7. Bh4 {[%emt 0:00:03]} g5 {[%emt 0:00:04]}
8. Bg3 {[%emt 0:00:02]} g4 {[%emt 0:00:01]} 9. Ne5 {[%emt 0:00:23]} Nxd4 {
[%emt 0:00:03]} 10. Qd1 {[%emt 0:00:06]} Bxc3+ {[%emt 0:00:17]} 11. bxc3 {
[%emt 0:00:02]} Nf5 {[%emt 0:00:02]} 12. e3 {[%emt 0:00:10]} h5 {[%emt 0:00:24]
} 13. Bf4 {[%emt 0:00:11]} Ne4 {[%emt 0:00:11]} 14. Qa4+ {[%emt 0:00:39]} Bd7 {
[%emt 0:00:12]} 15. Qb3 {[%emt 0:00:09]} Nc5 {[%emt 0:00:31]} 16. Qa3 {[%emt 0:
00:09]} b6 {[%emt 0:00:05]} 17. Rd1 {[%emt 0:00:09]} c6 {[%emt 0:00:16]} 18.
cxd5 {[%emt 0:00:06]} exd5 {[%emt 0:00:16]} 19. c4 {[%emt 0:00:01]} O-O {
[%emt 0:00:27]} 20. cxd5 {[%emt 0:00:10]} cxd5 {[%emt 0:00:01]} 21. Rxd5 {
[%emt 0:00:06]} Qf6 {[%emt 0:00:19]} 22. Nxd7 {[%emt 0:00:26]} Nxd7 {[%emt 0:
00:01]} 23. Qd3 {[%emt 0:00:24]} Qa1+ {[%emt 0:00:11]} 24. Qd1 {[%emt 0:00:01]}
Qc3+ {[%emt 0:00:06]} 25. Qd2 {[%emt 0:00:01]} Qa1+ {[%emt 0:00:01]} 26. Ke2 {
[%emt 0:00:01]} Nf6 {[%emt 0:00:08]} 27. Rxf5 {[%emt 0:00:07]} Rfd8 {[%emt 0:
00:03]} 28. Bd6 {[%emt 0:00:07]} Ne4 {[%emt 0:00:02]} 29. Qd4 {[%emt 0:00:02]}
Qxd4 {[%emt 0:00:02]} 30. exd4 {[%emt 0:00:00]} Rxd6 {[%emt 0:00:01]} 31. Ke3 {
[%emt 0:00:02]} Nf6 {[%emt 0:00:02]} 32. Bc4 {[%emt 0:00:01]} Re8+ {[%emt 0:00:
00]} 33. Kd3 {[%emt 0:00:01]} Red8 {[%emt 0:00:01]} 34. Kc2 {[%emt 0:00:02]}
Ne4 {[%emt 0:00:02]} 35. Rxf7 {[%emt 0:00:02]} Kh8 {[%emt 0:00:01]} 36. Rd1 {
[%emt 0:00:02]} Rxd4 {[%emt 0:00:02]} 37. Rxd4 {[%emt 0:00:01]} Rxd4 {[%emt 0:
00:01]} 38. Bd3 {[%emt 0:00:03]} Nc5 {[%emt 0:00:01]} 39. Bg6 {[%emt 0:00:01]}
a5 {[%emt 0:00:06]} 40. Bxh5 {[%emt 0:00:03]} Ra4 {[%emt 0:00:03]} 41. Rf6 {
[%emt 0:00:05]} Rxa2+ {[%emt 0:00:02]} 42. Kb1 {[%emt 0:00:01]} Rd2 {[%emt 0:
00:04]} 43. Bxg4 {[%emt 0:00:01]} Ra2 {[%emt 0:00:02]} 1/2-1/2

[Event "GER-ch Blitz 2019"]
[Site "Magdeburg"]
[Date "2019.05.25"]
[Round "20.5"]
[White "Voege, Tobias"]
[Black "Schulz, Karsten"]
[Result "1-0"]
[ECO "E61"]
[WhiteElo "2294"]
[BlackElo "2227"]
[Annotator "NA"]
[PlyCount "111"]
[EventDate "2019.05.25"]
[EventType "tourn"]
[EventCountry "GER"]
[Tiebreak "Number of wins+Number of black wins"]
[SourceTitle "playchess.com"]
[Source "ChessBase"]
[SourceQuality "1"]
[TimeControl "180+2"]

1. d4 {[%emt 0:00:00]} Nf6 {[%emt 0:00:00]} 2. c4 {[%emt 0:00:00]} g6 {[%emt 0:
00:00]} 3. Nc3 {[%emt 0:00:00]} Bg7 {[%emt 0:00:01]} 4. Nf3 {[%emt 0:00:01]}
O-O {[%emt 0:00:03]} 5. Bg5 {[%emt 0:00:01]} c5 {[%emt 0:00:03]} 6. d5 {
[%emt 0:00:01]} d6 {[%emt 0:00:02]} 7. e4 {[%emt 0:00:05]} b5 {[%emt 0:00:05]}
8. cxb5 {[%emt 0:00:01]} a6 {[%emt 0:00:00]} 9. bxa6 {[%emt 0:00:03]} Qa5 {
[%emt 0:00:02]} 10. Nd2 {[%emt 0:00:06]} Bxa6 {[%emt 0:00:06]} 11. Be2 {
[%emt 0:00:11]} Nbd7 {[%emt 0:00:10]} 12. O-O {[%emt 0:00:04]} Rfb8 {[%emt 0:
00:01]} 13. Rb1 {[%emt 0:00:09]} Ne5 {[%emt 0:00:14]} 14. f4 {[%emt 0:00:18]}
Ned7 {[%emt 0:00:16]} 15. Bxa6 {[%emt 0:00:17]} Qxa6 {[%emt 0:00:03]} 16. b3 {
[%emt 0:00:18]} Qd3 {[%emt 0:00:14]} 17. Rf3 {[%emt 0:00:11]} Qd4+ {[%emt 0:00:
11]} 18. Kh1 {[%emt 0:00:01]} Qb4 {[%emt 0:00:15]} 19. Nc4 {[%emt 0:00:19]} h6
{[%emt 0:00:09]} 20. Bh4 {[%emt 0:00:03]} Qb7 {[%emt 0:00:41]} 21. h3 {[%emt 0:
00:16]} Nb6 {[%emt 0:00:15]} 22. Nxb6 {[%emt 0:00:22]} Qxb6 {[%emt 0:00:01]}
23. a4 {[%emt 0:00:14]} Qb4 {[%emt 0:00:09]} 24. Qc2 {[%emt 0:00:12]} c4 {
[%emt 0:00:06]} 25. bxc4 {[%emt 0:00:14]} Qxc4 {[%emt 0:00:01]} 26. Rxb8+ {
[%emt 0:00:05]} Rxb8 {[%emt 0:00:03]} 27. Kh2 {[%emt 0:00:14]} Rb3 {[%emt 0:00:
04]} 28. Be1 {[%emt 0:00:01]} Rb8 {[%emt 0:00:19]} 29. Qd2 {[%emt 0:00:02]} Rc8
{[%emt 0:00:03]} 30. e5 {[%emt 0:00:03]} Nh5 {[%emt 0:00:02]} 31. Nb5 {[%emt 0:
00:02]} Qxa4 {[%emt 0:00:11]} 32. Nd4 {[%emt 0:00:01]} dxe5 {[%emt 0:00:03]}
33. Nc6 {[%emt 0:00:01]} exf4 {[%emt 0:00:08]} 34. Nxe7+ {[%emt 0:00:01]} Kh7 {
[%emt 0:00:01]} 35. Nxc8 {[%emt 0:00:02]} Qd7 {[%emt 0:00:00]} 36. Nb6 {
[%emt 0:00:02]} Qd6 {[%emt 0:00:01]} 37. Bf2 {[%emt 0:00:01]} Ng3 {[%emt 0:00:
03]} 38. Nc4 {[%emt 0:00:03]} Qd8 {[%emt 0:00:04]} 39. Qxf4 {[%emt 0:00:02]}
Nf5 {[%emt 0:00:01]} 40. g4 {[%emt 0:00:01]} Nh4 41. Bxh4 {[%emt 0:00:02]} Qxh4
{[%emt 0:00:07]} 42. Qxf7 {[%emt 0:00:02]} Qe1 {[%emt 0:00:01]} 43. Nd6 {
[%emt 0:00:02]} Qe5+ {[%emt 0:00:01]} 44. Qf4 {[%emt 0:00:01]} Qe2+ {[%emt 0:
00:01]} 45. Rf2 {[%emt 0:00:01]} Qe7 {[%emt 0:00:01]} 46. Nc4 {[%emt 0:00:01]}
Qc5 {[%emt 0:00:01]} 47. d6 {[%emt 0:00:02]} Qc6 {[%emt 0:00:03]} 48. Kg1 {
[%emt 0:00:02]} Qa4 {[%emt 0:00:02]} 49. Ne3 {[%emt 0:00:03]} Qa1+ {[%emt 0:00:
01]} 50. Kg2 {[%emt 0:00:01]} Qa7 {[%emt 0:00:02]} 51. Nd5 {[%emt 0:00:02]} Qb7
{[%emt 0:00:02]} 52. Qf3 {[%emt 0:00:01]} Qd7 {[%emt 0:00:01]} 53. Qf4 {
[%emt 0:00:04]} Qc6 {[%emt 0:00:01]} 54. Qe4 {[%emt 0:00:02]} Qd7 {[%emt 0:00:
01]} 55. Qe7 {[%emt 0:00:02]} Qa4 {[%emt 0:00:02]} 56. Nf6+ {[%emt 0:00:02]}
1-0

[Event "GER-ch Blitz 2019"]
[Site "Magdeburg"]
[Date "2019.05.25"]
[Round "20.6"]
[White "Stern, Rene"]
[Black "Feuerstack, Aljoscha"]
[Result "0-1"]
[ECO "D70"]
[WhiteElo "2538"]
[BlackElo "2441"]
[Annotator "ChessBase"]
[PlyCount "42"]
[EventDate "2019.05.25"]
[EventType "tourn"]
[EventCountry "GER"]
[Tiebreak "Number of wins+Number of black wins"]
[SourceTitle "playchess.com"]
[Source "ChessBase"]
[SourceQuality "1"]
[TimeControl "180+2"]

1. Nf3 {[%emt 0:00:00]} d5 {[%emt 0:00:00]} 2. d4 {[%emt 0:00:00]} Nf6 {
[%emt 0:00:10]} 3. c4 {[%emt 0:00:00]} c6 {[%emt 0:00:00]} 4. Nbd2 {[%emt 0:00:
02]} Bf5 {[%emt 0:00:08]} 5. Nh4 {[%emt 0:00:01]} Be4 {[%emt 0:00:01]} 6. Qb3 {
[%emt 0:00:02]} Qc7 {[%emt 0:00:29]} 7. Nxe4 {[%emt 0:00:12]} Nxe4 {[%emt 0:00:
04]} 8. e3 {[%emt 0:00:16]} e6 {[%emt 0:00:06]} 9. Bd3 {[%emt 0:00:06]} Be7 {
[%emt 0:00:13]} 10. Nf3 {[%emt 0:00:02]} O-O {[%emt 0:00:01]} 11. O-O {[%emt 0:
00:04]} Nd7 {[%emt 0:00:02]} 12. Qc2 {[%emt 0:00:07]} f5 {[%emt 0:00:12]} 13.
b3 {[%emt 0:00:01]} g5 {[%emt 0:00:15]} 14. Bb2 {[%emt 0:00:03]} g4 {[%emt 0:
00:05]} 15. Ne5 {[%emt 0:00:11]} Bd6 {[%emt 0:00:32]} 16. f3 {[%emt 0:00:01]}
Nef6 {[%emt 0:00:21]} 17. fxg4 {[%emt 0:00:50]} Bxe5 {[%emt 0:00:05]} 18. dxe5
{[%emt 0:00:06]} Nxg4 {[%emt 0:00:01]} 19. cxd5 {[%emt 0:00:05]} Ndxe5 {
[%emt 0:00:11]} 20. dxe6 {[%emt 0:00:22]} Nxd3 {[%emt 0:00:05]} 21. Qxd3 {
[%emt 0:00:02]} Qxh2# 0-1

[Event "GER-ch Blitz 2019"]
[Site "Magdeburg"]
[Date "2019.05.25"]
[Round "20.7"]
[White "Wichmann, Cliff"]
[Black "Hirneise, Jens"]
[Result "1/2-1/2"]
[ECO "E92"]
[WhiteElo "2280"]
[BlackElo "2375"]
[Annotator "NA"]
[PlyCount "102"]
[EventDate "2019.05.25"]
[EventType "tourn"]
[EventCountry "GER"]
[Tiebreak "Number of wins+Number of black wins"]
[SourceTitle "playchess.com"]
[Source "ChessBase"]
[SourceQuality "1"]
[TimeControl "180+2"]

1. d4 {[%emt 0:00:00]} Nf6 {[%emt 0:00:00]} 2. c4 {[%emt 0:00:01]} g6 {[%emt 0:
00:00]} 3. Nc3 {[%emt 0:00:01]} Bg7 {[%emt 0:00:00]} 4. Nf3 {[%emt 0:00:01]}
O-O {[%emt 0:00:01]} 5. e4 {[%emt 0:00:01]} d6 {[%emt 0:00:01]} 6. Be2 {
[%emt 0:00:01]} e5 {[%emt 0:00:01]} 7. Be3 {[%emt 0:00:01]} Ng4 {[%emt 0:00:02]
} 8. Bg5 {[%emt 0:00:01]} f6 {[%emt 0:00:01]} 9. Bc1 {[%emt 0:00:01]} Nc6 {
[%emt 0:00:19]} 10. O-O {[%emt 0:00:02]} Nh6 {[%emt 0:00:16]} 11. dxe5 {
[%emt 0:00:08]} dxe5 {[%emt 0:00:13]} 12. Qxd8 {[%emt 0:00:04]} Nxd8 {[%emt 0:
00:08]} 13. Be3 {[%emt 0:00:15]} Ne6 {[%emt 0:00:06]} 14. Rad1 {[%emt 0:00:23]}
c6 {[%emt 0:00:11]} 15. h3 {[%emt 0:00:11]} Nf7 {[%emt 0:00:05]} 16. c5 {
[%emt 0:00:02]} Bh6 {[%emt 0:00:06]} 17. Bxh6 {[%emt 0:00:04]} Nxh6 {[%emt 0:
00:01]} 18. Bc4 {[%emt 0:00:01]} Kg7 {[%emt 0:00:09]} 19. b4 {[%emt 0:00:10]}
a5 {[%emt 0:00:02]} 20. a3 {[%emt 0:00:05]} Nf7 {[%emt 0:00:11]} 21. Rd2 {
[%emt 0:00:27]} axb4 {[%emt 0:00:20]} 22. axb4 {[%emt 0:00:02]} Ra3 {[%emt 0:
00:01]} 23. Rc1 {[%emt 0:00:09]} Rd8 {[%emt 0:00:15]} 24. Kf1 {[%emt 0:00:17]}
Rxd2 {[%emt 0:00:04]} 25. Nxd2 {[%emt 0:00:01]} Nd4 {[%emt 0:00:04]} 26. Bxf7 {
[%emt 0:00:17]} Kxf7 {[%emt 0:00:02]} 27. Nc4 {[%emt 0:00:03]} Ra8 {[%emt 0:00:
14]} 28. Nd6+ {[%emt 0:00:04]} Ke7 {[%emt 0:00:05]} 29. Ne2 {[%emt 0:00:14]}
Nxe2 {[%emt 0:00:23]} 30. Kxe2 {[%emt 0:00:02]} Bd7 {[%emt 0:00:01]} 31. Rb1 {
[%emt 0:00:09]} b5 {[%emt 0:00:12]} 32. Nb7 {[%emt 0:00:09]} Ra2+ {[%emt 0:00:
03]} 33. Ke3 {[%emt 0:00:01]} Ra3+ {[%emt 0:00:04]} 34. Ke2 {[%emt 0:00:03]}
Ra2+ {[%emt 0:00:01]} 35. Ke3 {[%emt 0:00:12]} Ra3+ {[%emt 0:00:19]} 36. Ke2 {
[%emt 0:00:01]} Ra2+ {[%emt 0:00:00]} 37. Kf1 {[%emt 0:00:01]} f5 {[%emt 0:00:
05]} 38. exf5 {[%emt 0:00:08]} gxf5 {[%emt 0:00:06]} 39. Re1 {[%emt 0:00:07]}
Kf6 {[%emt 0:00:03]} 40. Rd1 {[%emt 0:00:04]} Be6 {[%emt 0:00:01]} 41. Rd6 {
[%emt 0:00:02]} Ke7 {[%emt 0:00:03]} 42. Kg1 {[%emt 0:00:06]} Bd7 {[%emt 0:00:
02]} 43. Na5 {[%emt 0:00:01]} Rb2 {[%emt 0:00:01]} 44. Rh6 {[%emt 0:00:02]}
Rxb4 {[%emt 0:00:02]} 45. Rxh7+ {[%emt 0:00:01]} Ke8 {[%emt 0:00:01]} 46. Nb7 {
[%emt 0:00:03]} Rb1+ {[%emt 0:00:02]} 47. Kh2 {[%emt 0:00:01]} b4 {[%emt 0:00:
02]} 48. Rh8+ {[%emt 0:00:06]} Ke7 {[%emt 0:00:03]} 49. Rh7+ {[%emt 0:00:01]}
Ke8 {[%emt 0:00:00]} 50. Rh8+ {[%emt 0:00:05]} Ke7 {[%emt 0:00:01]} 51. Rh7+ {
[%emt 0:00:01]} Ke8 {[%emt 0:00:01]} 1/2-1/2

[Event "GER-ch Blitz 2019"]
[Site "Magdeburg"]
[Date "2019.05.25"]
[Round "20.8"]
[White "Frischmann, Rick"]
[Black "Koch, Thomas"]
[Result "1/2-1/2"]
[ECO "B52"]
[WhiteElo "2320"]
[BlackElo "2474"]
[Annotator "ChessBase"]
[PlyCount "80"]
[EventDate "2019.05.25"]
[EventType "tourn"]
[EventCountry "GER"]
[Tiebreak "Number of wins+Number of black wins"]
[SourceTitle "playchess.com"]
[Source "ChessBase"]
[SourceQuality "1"]
[TimeControl "180+2"]

1. e4 {[%emt 0:00:00]} c5 {[%emt 0:00:00]} 2. Nf3 {[%emt 0:00:01]} d6 {[%emt 0:
00:00]} 3. Bb5+ {[%emt 0:00:01]} Bd7 {[%emt 0:00:00]} 4. Bxd7+ Qxd7 {[%emt 0:
00:01]} 5. c4 {[%emt 0:00:02]} Nf6 {[%emt 0:00:02]} 6. Nc3 {[%emt 0:00:00]} Nc6
{[%emt 0:00:01]} 7. d4 {[%emt 0:00:01]} cxd4 {[%emt 0:00:01]} 8. Nxd4 {[%emt 0:
00:01]} e6 {[%emt 0:00:01]} 9. O-O {[%emt 0:00:03]} Be7 {[%emt 0:00:01]} 10.
Be3 {[%emt 0:00:12]} O-O {[%emt 0:00:02]} 11. h3 {[%emt 0:00:08]} Rac8 {
[%emt 0:00:03]} 12. b3 {[%emt 0:00:02]} b6 {[%emt 0:00:04]} 13. Rc1 {[%emt 0:
00:03]} Rfd8 {[%emt 0:00:02]} 14. Nxc6 {[%emt 0:00:09]} Qxc6 {[%emt 0:00:06]}
15. Qd3 {[%emt 0:00:03]} Nd7 {[%emt 0:00:05]} 16. Rfd1 {[%emt 0:00:12]} Nc5 {
[%emt 0:00:03]} 17. Qc2 {[%emt 0:00:03]} Qb7 {[%emt 0:00:05]} 18. b4 {[%emt 0:
00:17]} Nd7 {[%emt 0:00:01]} 19. Nb5 {[%emt 0:00:01]} Nf6 {[%emt 0:00:07]} 20.
Bg5 {[%emt 0:00:45]} d5 {[%emt 0:00:20]} 21. Bxf6 {[%emt 0:00:04]} Bxf6 {
[%emt 0:00:05]} 22. exd5 {[%emt 0:00:02]} exd5 {[%emt 0:00:02]} 23. Qe2 {
[%emt 0:00:20]} a6 {[%emt 0:00:10]} 24. Nc3 {[%emt 0:00:11]} dxc4 {[%emt 0:00:
28]} 25. Rxd8+ Rxd8 {[%emt 0:00:01]} 26. Qxc4 {[%emt 0:00:05]} Rc8 {[%emt 0:00:
09]} 27. Qd3 {[%emt 0:00:09]} g6 {[%emt 0:00:26]} 28. Rc2 {[%emt 0:00:02]} Rd8
{[%emt 0:00:08]} 29. Qe2 {[%emt 0:00:13]} Rd4 {[%emt 0:00:05]} 30. Rd2 {
[%emt 0:00:20]} Kg7 {[%emt 0:00:19]} 31. Rxd4 Bxd4 {[%emt 0:00:01]} 32. Ne4 {
[%emt 0:00:02]} Qd5 {[%emt 0:00:03]} 33. a3 {[%emt 0:00:06]} b5 {[%emt 0:00:02]
} 34. h4 {[%emt 0:00:03]} Qe5 {[%emt 0:00:07]} 35. Qf3 {[%emt 0:00:02]} Qe7 {
[%emt 0:00:11]} 36. g3 {[%emt 0:00:02]} h6 {[%emt 0:00:03]} 37. Kg2 {[%emt 0:
00:01]} h5 {[%emt 0:00:02]} 38. Ng5 {[%emt 0:00:01]} Bf6 {[%emt 0:00:03]} 39.
Ne4 {[%emt 0:00:01]} Be5 {[%emt 0:00:02]} 40. Ng5 {[%emt 0:00:00]} Bf6 {
[%emt 0:00:04]} 1/2-1/2

[Event "GER-ch Blitz 2019"]
[Site "Magdeburg"]
[Date "2019.05.25"]
[Round "20.9"]
[White "Baskin, Robert"]
[Black "Zuyev, Igor"]
[Result "1-0"]
[ECO "A45"]
[WhiteElo "2398"]
[BlackElo "2447"]
[Annotator "NA"]
[PlyCount "79"]
[EventDate "2019.05.25"]
[EventType "tourn"]
[EventCountry "GER"]
[Tiebreak "Number of wins+Number of black wins"]
[SourceTitle "playchess.com"]
[Source "ChessBase"]
[SourceQuality "1"]
[TimeControl "180+2"]

1. d4 {[%emt 0:00:00]} Nf6 {[%emt 0:00:00]} 2. Bf4 {[%emt 0:00:00]} c5 {
[%emt 0:00:11]} 3. e3 {[%emt 0:00:02]} cxd4 {[%emt 0:00:05]} 4. exd4 {[%emt 0:
00:01]} Qb6 {[%emt 0:00:05]} 5. Nc3 {[%emt 0:00:04]} Nc6 {[%emt 0:00:05]} 6.
Nf3 {[%emt 0:00:08]} e5 {[%emt 0:00:07]} 7. dxe5 {[%emt 0:00:36]} Ng4 {[%emt 0:
00:12]} 8. Qd2 {[%emt 0:00:06]} Bc5 {[%emt 0:00:08]} 9. Bg3 {[%emt 0:00:06]}
O-O {[%emt 0:00:07]} 10. Na4 {[%emt 0:00:09]} Qb4 {[%emt 0:00:07]} 11. Nxc5 {
[%emt 0:00:06]} Qxc5 {[%emt 0:00:06]} 12. O-O-O {[%emt 0:00:07]} Ngxe5 {
[%emt 0:00:13]} 13. Nxe5 {[%emt 0:00:01]} Nxe5 {[%emt 0:00:03]} 14. Qd5 {
[%emt 0:00:06]} Qxd5 {[%emt 0:00:05]} 15. Rxd5 {[%emt 0:00:01]} d6 {[%emt 0:00:
04]} 16. Rxd6 {[%emt 0:00:07]} Nc6 {[%emt 0:00:04]} 17. Bc4 {[%emt 0:00:09]}
Re8 {[%emt 0:00:08]} 18. Rhd1 {[%emt 0:00:04]} Bf5 {[%emt 0:00:06]} 19. c3 {
[%emt 0:00:07]} Rac8 {[%emt 0:00:05]} 20. Bd3 {[%emt 0:00:06]} Bxd3 {[%emt 0:
00:07]} 21. R6xd3 {[%emt 0:00:03]} f6 {[%emt 0:00:21]} 22. Rd7 {[%emt 0:00:04]}
b6 {[%emt 0:00:05]} 23. Rb7 {[%emt 0:00:04]} Re7 {[%emt 0:00:07]} 24. Rxe7 {
[%emt 0:00:06]} Nxe7 {[%emt 0:00:01]} 25. Rd7 {[%emt 0:00:02]} Nc6 {[%emt 0:00:
06]} 26. Kd2 {[%emt 0:00:08]} Rd8 {[%emt 0:00:07]} 27. Rxd8+ {[%emt 0:00:02]}
Nxd8 {[%emt 0:00:01]} 28. Kd3 {[%emt 0:00:07]} Kf7 {[%emt 0:00:06]} 29. Kc4 {
[%emt 0:00:01]} Ke6 {[%emt 0:00:06]} 30. Kb5 {[%emt 0:00:02]} Kd7 {[%emt 0:00:
05]} 31. Ka6 {[%emt 0:00:20]} Nc6 {[%emt 0:00:05]} 32. Kb7 {[%emt 0:00:02]} b5
{[%emt 0:00:04]} 33. Ka6 {[%emt 0:00:12]} b4 {[%emt 0:00:05]} 34. c4 {[%emt 0:
00:02]} Ke6 {[%emt 0:00:06]} 35. f3 {[%emt 0:00:06]} h5 {[%emt 0:00:05]} 36.
Bf2 {[%emt 0:00:01]} Kd7 {[%emt 0:00:06]} 37. Bxa7 {[%emt 0:00:03]} h4 {
[%emt 0:00:05]} 38. Bf2 {[%emt 0:00:03]} h3 {[%emt 0:00:04]} 39. gxh3 {[%emt 0:
00:04]} Ne5 {[%emt 0:00:05]} 40. Kb5 {[%emt 0:00:01]} 1-0

[Event "GER-ch Blitz 2019"]
[Site "Magdeburg"]
[Date "2019.05.25"]
[Round "20.10"]
[White "Stein, Robert"]
[Black "Buhmann, Rainer"]
[Result "0-1"]
[ECO "E11"]
[WhiteElo "2318"]
[BlackElo "2573"]
[Annotator "ChessBase"]
[PlyCount "76"]
[EventDate "2019.05.25"]
[EventType "tourn"]
[EventCountry "GER"]
[Tiebreak "Number of wins+Number of black wins"]
[SourceTitle "playchess.com"]
[Source "ChessBase"]
[SourceQuality "1"]
[TimeControl "180+2"]

1. d4 {[%emt 0:00:00]} Nf6 {[%emt 0:00:00]} 2. c4 {[%emt 0:00:01]} e6 {[%emt 0:
00:00]} 3. Nf3 {[%emt 0:00:01]} Bb4+ {[%emt 0:00:01]} 4. Bd2 {[%emt 0:00:01]}
Be7 {[%emt 0:00:01]} 5. g3 {[%emt 0:00:01]} a6 {[%emt 0:00:01]} 6. Nc3 {
[%emt 0:00:10]} d5 {[%emt 0:00:01]} 7. cxd5 {[%emt 0:00:16]} exd5 {[%emt 0:00:
02]} 8. Bg2 {[%emt 0:00:01]} O-O {[%emt 0:00:02]} 9. O-O {[%emt 0:00:02]} c6 {
[%emt 0:00:11]} 10. Bf4 {[%emt 0:00:02]} Re8 {[%emt 0:00:09]} 11. Qc2 {[%emt 0:
00:06]} Nbd7 {[%emt 0:00:05]} 12. Ne5 {[%emt 0:00:17]} Nxe5 {[%emt 0:00:12]}
13. Bxe5 {[%emt 0:00:02]} Nd7 {[%emt 0:00:16]} 14. Bf4 {[%emt 0:00:02]} Nf8 {
[%emt 0:00:04]} 15. Rad1 {[%emt 0:00:12]} Be6 {[%emt 0:00:06]} 16. e4 {[%emt 0:
00:15]} dxe4 {[%emt 0:00:14]} 17. Bxe4 {[%emt 0:00:02]} Ng6 {[%emt 0:00:03]}
18. Be3 {[%emt 0:00:01]} Rc8 {[%emt 0:00:08]} 19. Qb1 {[%emt 0:00:08]} Bc4 {
[%emt 0:00:24]} 20. Rfe1 {[%emt 0:00:04]} Bb4 {[%emt 0:00:04]} 21. a3 {[%emt 0:
00:55]} Bxc3 {[%emt 0:00:02]} 22. bxc3 {[%emt 0:00:18]} b5 {[%emt 0:00:09]} 23.
Bf5 {[%emt 0:00:23]} Be6 {[%emt 0:00:16]} 24. Bxe6 Rxe6 {[%emt 0:00:02]} 25. a4
{[%emt 0:00:03]} Qd5 {[%emt 0:00:05]} 26. axb5 {[%emt 0:00:01]} cxb5 {[%emt 0:
00:02]} 27. Bd2 {[%emt 0:00:05]} Rce8 {[%emt 0:00:10]} 28. Qa1 {[%emt 0:00:04]}
h5 {[%emt 0:00:07]} 29. Rxe6 {[%emt 0:00:05]} Rxe6 {[%emt 0:00:01]} 30. Re1 {
[%emt 0:00:01]} h4 {[%emt 0:00:05]} 31. Rxe6 {[%emt 0:00:19]} Qxe6 {[%emt 0:00:
01]} 32. Qf1 {[%emt 0:00:02]} h3 {[%emt 0:00:07]} 33. f4 Ne7 {[%emt 0:00:07]}
34. Qf3 {[%emt 0:00:05]} Nd5 {[%emt 0:00:08]} 35. f5 Qc6 36. g4 Qc4 37. Qxh3
Qe2 38. Qg2 Qd1+ 0-1